Cogmind - Beta 15 @@@ ROGUE MODE // 2025.09.24 @ 19:01:00 Player: The Sun Result: Destroyed by S-10 Pest with Light Assault Rifle Performance ------------- Evolutions (0) 0 Regions Visited (1) 200 Robots Destroyed (8) 40 Value Destroyed (148) 148 Prototype IDs (0) 0 Alien Tech Used (0) 0 Bonus (0) 0 TOTAL SCORE: 388 Bonus ------- None Cogmind --------- Core Integrity 0/250 Matter 194/300 Energy 100/100 System Corruption 0% Temperature Cool (0) Movement Core (50) Location -10/Materials Parts ------- > --- POWER (1) -------- (None) > --- PROPULSION (2) --- (None) > --- UTILITY (2) ------ (None) > --- WEAPON (2) ------- Small Laser Assault Rifle > --- INVENTORY (5) ---- (None) Peak State ------------ > --- POWER ------------ Light Ion Engine > --- PROPULSION ------- Aluminum Leg Aluminum Leg > --- UTILITY ---------- (None) > --- WEAPON ----------- Small Laser Light Assault Rifle > --- INVENTORY -------- Assault Rifle [Rating: 5] Favorites ----------- Power Light Ion Engine Engine Light Ion Engine Propulsion Aluminum Leg Leg Aluminum Leg Utility None Weapon Light Assault Rifle Energy Gun Small Laser Ballistic Gun Light Assault Rifle Ballistic Cannon Light Cannon Build | -11 -10 ------- Run | Yrd Mat Slots Evolved . | . . Power . | . . Propulsion . | . . Utility . | . . Weapon . | . . Parts Attached 10 | 5 5 Power 3 | 1 2 Engine 3 | 1 2 Core . | . . Reactor . | . . Propulsion 2 | 2 . Treads . | . . Leg 2 | 2 . Wheel . | . . Hover . | . . Flight . | . . Utility . | . . Device . | . . Storage . | . . Processor . | . . Hackware . | . . Protection . | . . Artifact . | . . Weapon 5 | 2 3 Energy Gun 2 | 1 1 Energy Cannon . | . . Ballistic Gun 2 | 1 1 Ballistic Cannon 1 | . 1 Launcher . | . . Special Weapon . | . . Impact Weapon . | . . Slashing Weapon . | . . Piercing Weapon . | . . Special Melee Weapon . | . . Unidentified Prototypes . | . . Parts Lost 7 | . 7 Power 3 | . 3 Propulsion 2 | . 2 Utility . | . . Weapon 2 | . 2 Highest Loss Streak 3 | . 3 To Critical Strikes 1 | . 1 Average Backups 1 | 1 2 Power . | . . Propulsion . | . . Utility . | . . Weapon 1 | 1 1 Tool/Special . | . . Unused Backups . | . . Power . | . . Propulsion . | . . Utility . | . . Weapon . | . . Tool/Special . | . . Average Slot Usage (%) 61 | . 61 Engine 12 | . 12 Leg 20 | . 20 Energy Gun 11 | . 11 Ballistic Gun 14 | . 14 Ballistic Cannon 2 | . 2 Peak Build Rating 5 | 5 5 Average Rating 4 | 3 4 On Entrance 2 | . 5 Naked Turns . | . . Heaviest Build 9 | 5 9 Greatest Support 20 | 20 20 Greatest Overweight (x) 2 | . 2 Average Overweight (x) . | . . Largest Inventory Capacity 5 | 5 5 Average Capacity 5 | 5 5 Most Carried 3 | 3 3 Average Carried 1 | 1 2 Final Capacity 5 | 5 5 Final Carried 2 | 2 . Class Distribution -------------------- 100% | Mutant Dominant Class ---------------- Mutant | -10/Materials Resources | -11 -10 ----------- Run | Yrd Mat Matter Collected 307 | 261 46 Remotely . | . . Salvage Created 243 | 35 208 Parts 16 | 2 14 Haulers Intercepted . | . . Recyclers Shooed 1 | . 1 Parts Field Recycled . | . . Retrieved Matter . | . . Parts Self-Destructed . | . . Prevented . | . . Kills | -11 -10 ------- Run | Yrd Mat Combat Hostiles Destroyed 7 | 1 6 Guns 5 | 1 4 Cannons 2 | . 2 Classes Destroyed 3 | 1 2 Recycler 1 | . 1 Swarmer 4 | . 4 Grunt 3 | 1 2 Best Kill Streak 4 | 1 4 Combat Bots Only 3 | 1 3 Max Kills in Single Turn 1 | 1 1 Gunslinging . | . . Exploded . | . . Melee . | . . Uniques/NPCs Destroyed . | . . Combat | -11 -10 -------- Run | Yrd Mat Hostile Shots Fired 146 | 8 138 Missed 43 | 1 42 Hits 103 | 7 96 Projectile 103 | 7 96 Critical Strikes 1 | . 1 Damage Taken 897 | 75 822 Core 256 | 21 235 Absorbed by Shields . | . . Core Remaining (%) 91 | 91 . Volleys Fired 70 | 11 59 Largest 2 | 1 2 Hottest 60 | 20 60 Shots Fired 111 | 11 100 Gun 99 | 11 88 Cannon 12 | . 12 Launcher . | . . Special . | . . Kinetic 82 | 11 71 Thermal 29 | . 29 Explosive . | . . Electromagnetic . | . . Robot Hit Streak 5 | 3 5 Robot Miss Streak 5 | 2 5 Penetration Max . | . . Secondary Targets 1 | . 1 Max Gunslinging Chain 1 | . 1 Shots Hit Robots 51 | 6 45 Core Hits 17 | 3 14 Critical Kills . | . . Critical Parts Destroyed 1 | . 1 Critical Strikes 1 | . 1 Destroy 1 | . 1 Melee Attacks . | . . Impact . | . . Slashing . | . . Piercing . | . . Sneak Attacks . | . . Combat Hostiles . | . . Follow-up Attacks . | . . Damage Inflicted 631 | 45 586 Guns 513 | 45 468 Cannons 118 | . 118 Explosions . | . . Melee . | . . Ramming . | . . Kinetic 396 | 45 351 Thermal 235 | . 235 Explosive . | . . Electromagnetic . | . . Impact . | . . Slashing . | . . Piercing . | . . Highest Corruption . | . . Average Corruption . | . . Corruption Purged . | . . Corruption Blocked . | . . Overload Shots . | . . Overflow Damage 10 | . 10 Projectiles 10 | . 10 Explosions . | . . Melee . | . . Knockbacks 1 | . 1 Impact . | . . Kinetic 1 | . 1 Secondary . | . . Self-Inflicted Damage . | . . Shots . | . . Rammed . | . . Targets Rammed . | . . Kicked . | . . Crushed . | . . Highest Temperature 58 | 6 58 Average Temperature 17 | 6 17 Received Heat Transfer 174 | 42 132 Siege Activations . | . . Martial Activations . | . . Shielding Activations . | . . Robots Disrupted . | . . Combat Hostiles . | . . Robots Corrupted . | . . Combat Hostiles . | . . Parts Fried . | . . Impact Corruptions . | . . Robots Melted . | . . Combat Hostiles . | . . Parts Melted . | . . Heat Transferred 525 | . 525 Parts Sabotaged . | . . Parts Stolen . | . . Parts Stripped . | . . Power Chain Reactions . | . . Alert | -11 -10 ------- Run | Yrd Mat Maximum Alert Level . | . . Low Security (%) 100 | 100 100 Level 1 . | . . Level 2 . | . . Level 3 . | . . Level 4 . | . . Level 5 . | . . High Security . | . . Max Security . | . . Peak Influence 50 | 20 50 Initial 6 | . 6 Average 8 | 1 12 Influence Increases 185 | 20 165 Destroy 0b10 Robot/C 140 | 20 120 Destroy 0b10 Robot/NC 5 | . 5 Destroy Leader 40 | . 40 Influence Decreases 145 | 10 135 Entered New Map 4 | . 4 Time Decay 86 | 10 76 Lost Part 55 | . 55 Squads Dispatched 2 | . 2 Investigation . | . . Extermination . | . . Reinforcement 2 | . 2 Assault . | . . Garrison . | . . Intercept . | . . Searches Triggered . | . . Construction Impeded . | . . Haulers Reinforced . | . . Active Scanning Responses . | . . Cargo Convoy Interrupts . | . . Stealth | -11 -10 --------- Run | Yrd Mat Distress Signals 1 | . 1 Communications Jammed . | . . Distress Signals . | . . Times Spotted 24 | 1 23 Peak Tracking Total 5 | 1 5 Tactical Retreats . | . . Traps | -11 -10 ------- Run | Yrd Mat Traps Triggered . | . . Indirectly . | . . Trap Hack Attempts . | . . Triggered . | . . Disarmed . | . . Reprogrammed . | . . Reused . | . . Traps Extracted . | . . Installed . | . . Triggered . | . . Machines | -11 -10 ---------- Run | Yrd Mat Machines Disabled . | . . Max in Single Turn . | . . Machines Repaired . | . . Machines Dismantled . | . . Machines Sabotaged . | . . Overloaded Fab Kills . | . . Hacking | -11 -10 --------- Run | Yrd Mat Machines Accessed 1 | . 1 Terminals 1 | . 1 Fabricators . | . . Repair Stations . | . . Recycling Units . | . . Scanalyzers . | . . Garrison Access . | . . Total Hacks 3 | . 3 Successful 2 | . 2 Failed 1 | . 1 Catastrophic . | . . Database Lockouts . | . . Manual . | . . Terminals 3 | . 3 Fabricators . | . . Repair Stations . | . . Recycling Units . | . . Scanalyzers . | . . Garrison Access . | . . Terminal Hacks 2 | . 2 Alert Level 2 | . 2 Fabricator Hacks . | . . Repair Station Hacks . | . . Recycling Unit Hacks . | . . Scanalyzer . | . . Garrison Access Hacks . | . . Unauthorized Hacks . | . . Terminals . | . . Fabricators . | . . Repair Stations . | . . Recycling Units . | . . Scanalyzers . | . . Garrison Access . | . . Data Cores Recovered . | . . Used . | . . Hacking Detections 1 | . 1 Full Trace Events 1 | . 1 Feedback Events . | . . Feedback Blocked . | . . Robot Schematics Acquired . | . . Robots Built . | . . Authchips . | . . Time . | . . Total Robot Build Rating . | . . Part Schematics Acquired . | . . Parts Built . | . . Authchips . | . . Time . | . . Total Part Build Rating . | . . Parts Repaired . | . . Time . | . . Parts Recycled . | . . Recycled Matter . | . . Retrieved Matter . | . . Retrieved Components . | . . Parts Scanalyzed . | . . Part Schematics Acquired . | . . Parts Damaged . | . . Bothacking | -11 -10 ------------ Run | Yrd Mat Used RIF Installer . | . . Robots Hacked . | . . Non-combat . | . . Combat . | . . Robot Hacks Applied . | . . Relay Couplers Released . | . . Fabnet Peak Effective % . | . . Robots Rewired . | . . Allies Hacked . | . . Hacks Repelled . | . . Allies | -11 -10 -------- Run | Yrd Mat Total Allies . | . . Largest Group . | . . Highest-Rated Group . | . . Highest-Rated Ally . | . . Total Orders . | . . Ally Attacks . | . . Total Damage . | . . Kills . | . . Allies Corrupted . | . . Allies Melted . | . . Intel | -11 -10 ------- Run | Yrd Mat Active Infowar (turns) . | . . Robot Analysis Total . | . . Derelict Logs Recovered . | . . Drone Launches . | . . Drone Recoveries . | . . Exploration | -11 -10 ------------- Run | Yrd Mat Turns Passed 400 | 130 270 Spaces Moved 191 | 99 92 Core 39 | 29 10 Treads . | . . Legs 152 | 70 82 Wheels . | . . Hover . | . . Flight . | . . Fastest Speed 50 | 50 50 Average Speed 109 | 99 121 Slowest Speed 150 | 120 150 Overloaded Moves . | . . Propulsion Burnouts . | . . Robots Hopped . | . . Potential Cave-ins . | . . Cave-ins Triggered . | . . Exploration Rate (%) 11 | 6 17 Regions Visited 1 Branch Regions . Pre-discovered Areas . | . . Known Exits Taken . | . . Unknown Exits Taken 1 | 1 . Scrap Searched . | . . Spaces Dug . | . . Terrain Destroyed . | . . Melee . | . . Projectile . | . . AOE . | . . Terrain Rammed . | . . Walls Destroyed . | . . Machines Disabled . | . . Actions | -11 -10 --------- Run | Yrd Mat Total 284 | 121 163 Wait . | . . Move 190 | 98 92 Hop . | . . Pick Up 10 | 7 3 Fast Attach . | . . Attach 11 | 5 6 Detach 2 | . 2 Swap . | . . Drop 1 | . 1 Fire 70 | 11 59 Melee . | . . Ram . | . . Kick . | . . Crush . | . . Escape Stasis . | . . Rewire . | . . Trap . | . . Miscellaneous . | . . Route ------- -11/Scrapyard -10/Materials History --------- Turn | Location | Event 2 | -11/Scrapyard | Met Revision 17 95 | -11/Scrapyard | Discovered new exit (range 8) 131 | -11/Scrapyard | Entered Materials 318 | -10/Materials | Build established: Mutant 357 | -10/Materials | Core integrity fell below 50% 368 | -10/Materials | Lost 3 parts (1p2n) 380 | -10/Materials | Core integrity fell below 20% 401 | -10/Materials | Destroyed by S-10 Pest with Light Assault Rifle Last Messages --------------- R-06 Scavenger collects Flight Unit. M-13 Machinist repairs S-10 Pest. M-13 Machinist repairs R-06 Scavenger. M-13 Machinist fits Backup Propulsion I on S-10 Pest. S-10 Pest destroyed. M-13 Machinist repairs S-10 Pest Flight Unit. R-06 Scavenger destroyed. Destroyed Flight Unit. S-10 Pest knocked back. Lgt. Cannon destroyed. S-10 Pest destroyed. Lgt. Assault Rifle destroyed. Ion Engine destroyed. G-34 Mercenary suffers critical hit (Destroy). Destroyed Sml. Laser. S-10 Pest destroyed. R-06 Scavenger collects Lgt. Ion Engine. S-10 Pest destroyed. Switching to secondary target: S-10 Pest. Map ----- +----------------------------------------------------+ | | | | | | | | | | | | | ?????????????????????????????????????????????? | | ?????????????????????????????????????????????? | | ?????????????????????????????????????????????? | | ?????????????????????????????????????????????? | | ?????????????????????###?????????????????????? | | ????????????????????? #????????????????????? | | ????????????????????? #????????????????????? | | ????????????????????? #????????????????????? | | ????????????????????? #????????????????????? | | ????????????????????? #????????????????????? | | ?????????????????????%[=#????????????????????? | | ????????????????????# *%#????????????????????? | | ????????????????????# %#????????????????????? | | ????????????????????#%s #????????????????????? | | ????????????????????# #????????????????????? | | ????????????????????#% #????????????????????? | | ????????????????????# #????????????????????? | | ????????????????????# #????????????????????? | | ?????########???????# #????????????????????? | | ?????# #???????#@ #????????????????????? | | ?????# #???????# #????????????????????? | | ?????# ""#########*%!#????????????????????? | | ?????# T"# ## %#????????????????????? | | ?????# ""# ## =%#????????????????????? | | ?????# # "" ## r #????????????????????? | | ##########+## T" ## #????????????????????? | | # + + "" ## #????????????????????? | | ? """ # # ## ##???????????????????? | | ? """ # ####+### #???????????????????? | | # """ # #######?????????????? | | # + %% ?????????? | | # # % ?????????? | | # ""T"" # #### ?????????? | | ? """"" # #??############## ??????????? | | ?? # #????????????????????????????? | | ?######### #????????????????????????????? | | ?????# #????????????????????????????? | | ?????# #????????????????????????????? | | ?????# #???????????????????????????? | | ?????##### #???????????????????????????? | | ?????????# #???????????????????????????? | | ?????????# #???????????????????????????? | | ?????????# #???????????????????????????? | | ?????????# #???????????????????????????? | +----------------------------------------------------+ Best States ------------- Heat Dissipation 25 Energy Generation 10 Energy Capacity 250 Matter Stores 300 Matter Capacity 300 Sight Range 16 Terrain Scan Density 10 Evasion (%) 55 Item Schematics ----------------- None Robot Schematics ------------------ None Fabricated ------------ Nothing Repaired ---------- Nothing Alien Tech Used ----------------- None Achievements -------------- Storm Trooper Challenges ------------ None Game ------ Seed OmegaHybridChargecaster Manual? 0 Play Time 00:08:28 Cumulative 0.4 hours Start 2025.09.24 @ 18:56:06 End 2025.09.24 @ 19:01:00 Sessions 1 Manual Loads 0 Difficulty Rogue Special Mode None Game No. 2 Rogue 2 Adventurer 0 Explorer 0 Win Type - Total 0 Types 0/0/0/0/0/0/0/0/0/0 Lore% 0 Gallery% 1 Achievement% 1 Wizard Run 0 Options --------- Layout 1 ASCII 0 Keyboard 0 Movement Mouse Keybinds 0 Fullscreen 1 Font 32/SmallcapsGlow Map View 50x35 Zoom Use 0% Tactical HUD 0 Map Filters NONE Filters NONE Steam 1 RUN: c4ab1d10-f0fc-41c9-9866-034c5b45b9f1